bitfinex/quotes_ETHUSD_20240709
["timestamp","ask_amount","ask_price","bid_price","bid_amount"]
[1720495270094,0.34195083,3059.1,3058.3,3.26974]
[1720495275225,2.3842,3059.3,3058.3,3.26974]
[1720495275444,1.13265144,3059.2,3058.3,3.26974]
[1720495275717,0.69369704,3059.2,3058.0,3.0]
[1720495275923,1.21449044,3059.1,3057.9,5.2524]
[1720495276127,3.51755523,3059.0,3057.3,9.925]
[1720495276289,3.51755523,3059.0,3057.3,7.44]
[1720495276290,4.0975749,3058.7,3057.3,7.44]
[1720495276627,2.9272865,3058.6,3057.3,10.71075]
[1720495276925,1.13275523,3058.5,3057.4,3.27074]
[1720495277125,0.08175636,3058.4,3057.4,3.27074]
[1720495277321,1.13275523,3058.3,3057.4,3.27074]
[1720495277527,0.08175635,3058.2,3057.4,3.27074]
[1720495277819,0.08175635,3058.2,3057.5,3.0]
[1720495278022,2.3439,3058.4,3057.3,7.44]
[1720495278324,1.13307211,3058.3,3057.3,7.44]
[1720495278554,2.3439,3058.4,3057.3,7.44]
[1720495278832,1.13301244,3058.3,3057.3,7.44]
[1720495279033,2.3439,3058.4,3057.3,7.44]
[1720495279342,1.56984752,3058.3,3057.3,7.44]
[1720495279547,1.13309813,3058.2,3057.4,3.0]
[1720495279834,1.13309813,3058.1,3057.4,3.0]
[1720495280141,1.13309813,3058.1,3057.0,7.44]
[1720495280142,2.3439,3057.9,3057.0,7.44]
[1720495280420,1.45743879,3057.8,3057.0,7.44]
[1720495280622,1.21487282,3057.7,3057.0,7.44]
[1720495280920,0.08177469,3057.7,3057.0,7.44]
[1720495281313,1.13329479,3057.6,3057.0,7.44]
[1720495281529,0.08177449,3057.5,3057.0,7.44]
[1720495282202,0.08177449,3057.5,3056.6,7.44]
[1720495282408,3.41771869,3057.4,3056.2,7.44]
[1720495282623,0.08178739,3057.3,3056.2,7.44]
[1720495284007,1.13350701,3057.2,3056.2,7.44]
[1720495284316,3.99803139,3057.4,3056.2,7.44]
[1720495284317,0.08179311,3057.1,3056.2,7.44]
[1720495285107,2.254,3057.0,3056.2,7.44]
[1720495285302,0.08179606,3056.9,3056.2,7.44]
[1720495285740,2.3589,3056.8,3056.0,0.005]
[1720495286065,1.21552183,3056.7,3056.0,0.005]
[1720495286246,0.0818082,3056.7,3056.0,0.005]
[1720495286401,0.24407082,3056.6,3056.0,0.005]
[1720495286611,0.08180955,3056.5,3056.0,0.005]
[1720495287458,2.3589,3056.8,3056.0,0.005]
[1720495288553,4.208051,3056.8,3056.0,0.005]
[1720495290133,1.849151,3056.8,3056.0,5.46891195]
[1720495290328,1.849151,3056.8,3056.0,2.46891195]
[1720495290728,1.849151,3056.8,3056.1,0.06480361]
[1720495290930,1.849151,3056.8,3056.2,3.27202]
[1720495291139,1.849151,3056.8,3056.3,3.33670601]
[1720495291342,1.849151,3056.8,3056.4,3.27181]
[1720495291657,1.849151,3056.8,3056.5,3.2717]
[1720495292354,1.849151,3056.8,3056.6,3.27157]
[1720495293981,1.849151,3056.8,3056.4,3.27181]
[1720495294127,1.849151,3056.8,3056.2,3.27201]
[1720495294128,0.08178334,3056.7,3056.0,3.32424311]
[1720495294335,1.849151,3056.8,3056.2,3.27203]
[1720495294666,1.849151,3056.8,3056.3,3.0]
[1720495294973,1.849151,3056.8,3056.4,3.27174]
[1720495295264,1.849151,3056.8,3056.5,3.33646358]
[1720495295683,1.849151,3056.8,3056.5,3.27168]
[1720495296057,1.849151,3056.8,3056.6,3.27159]
[1720495299547,1.849151,3056.8,3056.7,6.543]
[1720495300836,1.849151,3056.8,3056.7,9.543]
[1720495301452,1.849151,3056.8,3056.7,10.093]
[1720495302163,1.849151,3056.8,3056.7,3.0]
[1720495302368,1.849151,3056.8,3056.6,6.27159]
[1720495302687,1.849151,3056.8,3056.6,6.27158]
[1720495305164,1.849151,3056.8,3056.7,3.2715]
[1720495305373,1.849151,3056.8,3056.7,6.2715]
[1720495306696,1.849151,3056.8,3056.7,3.0]
[1720495308286,1.849151,3056.8,3056.0,0.005]
[1720495308287,2.0340661,3056.8,3056.0,0.005]
[1720495308701,2.3818,3056.6,3056.0,0.005]
[1720495308905,1.21538691,3056.5,3056.0,0.005]
[1720495309117,1.13370081,3056.4,3056.0,0.005]
[1720495309318,0.08180784,3056.3,3056.0,0.005]
[1720495309463,0.05641479,3056.4,3056.0,0.005]
[1720495309789,0.24382148,3056.4,3056.0,0.005]
[1720495309985,0.05637304,3056.3,3056.0,0.005]
[1720495310367,0.24382148,3056.4,3056.0,0.005]
[1720495310815,2.3818,3056.6,3056.0,0.005]
[1720495311032,0.05628963,3056.5,3056.0,0.005]
[1720495311164,2.3818,3056.6,3056.0,0.005]
[1720495311503,0.05612828,3056.5,3056.0,0.005]
[1720495311809,0.05612828,3056.5,3056.1,3.27214]
[1720495312107,1.849151,3056.8,3056.1,3.27214]
[1720495312267,0.05606421,3056.4,3056.2,3.0]
[1720495312464,0.05606421,3056.4,3056.0,0.005]
[1720495312465,2.2879,3056.7,3056.0,0.005]
[1720495312700,1.62911399,3056.6,3056.0,0.005]
[1720495312866,1.13359996,3056.5,3056.0,0.005]
[1720495313294,0.05620407,3056.4,3056.0,0.005]
[1720495313765,0.4137051,3056.6,3056.0,0.005]
[1720495313960,0.32635255,3056.5,3056.0,0.005]
[1720495314163,1.13372043,3056.4,3056.0,0.005]
[1720495314509,0.05610855,3056.3,3056.0,0.005]
[1720495314998,0.0560668,3056.2,3056.0,0.005]
[1720495315294,0.27016051,3056.5,3056.0,0.005]
[1720495315495,0.05602505,3056.1,3056.0,0.005]
[1720495315696,0.27016051,3056.5,3056.0,0.005]
[1720495316171,0.05615029,3056.4,3056.0,0.005]
[1720495316374,0.13795913,3056.4,3056.0,0.005]
[1720495316573,1.13375446,3056.3,3056.0,0.005]
[1720495316770,0.13793022,3056.2,3056.0,0.005]
[1720495316970,3.47783217,3056.1,3056.0,0.005]
[1720495317294,2.76165507,3056.1,3056.0,0.005]
[1720495317498,3.8955174,3056.1,3056.0,0.005]
[1720495317706,2.76165507,3056.1,3056.0,0.005]
[1720495318023,3.8955121,3056.1,3056.0,0.005]
[1720495318623,2.76165507,3056.1,3056.0,0.005]
[1720495319672,3.89553387,3056.1,3056.0,0.005]
[1720495320473,2.76165507,3056.1,3056.0,0.005]
[1720495320781,0.05607883,3056.1,3056.0,0.005]
[1720495320968,2.4425,3056.5,3056.0,0.005]
[1720495321168,1.13376197,3056.4,3056.0,0.005]
[1720495321395,1.21557592,3056.3,3056.0,0.005]
[1720495321598,0.05612797,3056.4,3056.0,0.005]
[1720495321599,1.21557827,3056.2,3056.0,0.005]
[1720495321817,0.05600272,3056.1,3056.0,0.005]
[1720495322610,2.4425,3056.5,3056.0,0.005]
[1720495322611,5.4425,3056.5,3056.0,0.005]
[1720495322814,1.43417299,3056.4,3056.0,0.005]
[1720495324410,0.08180923,3056.3,3056.0,0.005]
[1720495324573,0.05612058,3056.2,3056.0,0.005]
[1720495324775,0.08180923,3056.3,3056.0,0.005]
[1720495324973,0.05612058,3056.2,3056.0,0.005]
[1720495325203,0.08180923,3056.3,3056.0,0.005]
[1720495325414,0.05615534,3056.2,3056.0,0.005]
[1720495325610,0.08180923,3056.3,3056.0,0.005]
[1720495325773,0.05612058,3056.2,3056.0,0.005]
[1720495325974,0.268675,3056.3,3056.0,0.005]
[1720495326194,0.05610156,3056.2,3056.0,0.005]
[1720495326408,0.268675,3056.3,3056.0,0.005]
[1720495326605,0.05610156,3056.2,3056.0,0.005]
[1720495326786,0.268675,3056.3,3056.0,0.005]
[1720495326992,0.05604447,3056.2,3056.0,0.005]
[1720495327315,0.268675,3056.3,3056.0,0.005]
[1720495327793,0.05595264,3056.2,3056.0,0.005]
[1720495328116,0.268675,3056.3,3056.0,0.005]
[1720495328277,0.05591089,3056.1,3056.0,0.005]
[1720495328480,0.268675,3056.3,3056.0,0.005]
[1720495328680,0.05591089,3056.1,3056.0,0.005]
[1720495329180,2.4425,3056.5,3056.0,0.005]
[1720495329508,0.60028614,3056.4,3056.0,0.005]
[1720495329678,0.05603614,3056.4,3056.0,0.005]
[1720495330518,0.08180243,3056.7,3056.0,0.005]
[1720495330706,0.05588108,3056.3,3056.0,0.005]
[1720495331012,0.05583933,3056.2,3056.0,0.005]
[1720495331211,0.19309534,3056.6,3056.0,0.005]
[1720495331379,0.05596457,3056.5,3056.0,0.005]
[1720495331920,0.13776691,3056.5,3056.0,0.005]
[1720495333398,0.29536791,3056.5,3056.0,0.005]
[1720495334477,0.21356557,3056.5,3056.0,0.005]
[1720495336813,0.295371,3056.5,3056.0,0.005]
[1720495337514,0.21356557,3056.5,3056.0,0.005]
[1720495338516,0.0818054,3056.4,3056.0,0.005]
[1720495338817,0.05583333,3056.3,3056.0,0.005]
[1720495342625,0.08180533,3056.2,3056.0,0.005]
[1720495342935,0.31450563,3056.1,3056.0,0.005]
[1720495344201,0.05593176,3056.1,3056.0,0.005]
[1720495344548,0.157601,3056.5,3056.0,0.005]
[1720495344901,0.0541095,3056.4,3056.0,0.005]
[1720495345102,0.1359225,3056.4,3056.0,0.005]
[1720495346514,2.305,3056.3,3056.0,0.005]
[1720495346839,0.37986505,3056.2,3056.0,0.005]
[1720495347209,1.71414974,3056.1,3056.0,0.005]
[1720495347529,1.76795338,3056.1,3056.0,0.005]
[1720495347733,0.05380364,3056.1,3056.0,0.005]
[1720495348235,1.76795338,3056.1,3056.0,0.005]
[1720495348447,3.3418331,3056.1,3056.0,0.005]
[1720495348613,4.62768336,3056.1,3056.0,0.005]
[1720495348815,7.80748236,3056.1,3056.0,0.005]
[1720495349002,2.7647903,3056.1,3056.0,0.005]
[1720495349201,7.88952226,3056.1,3056.0,0.005]
[1720495349617,6.89889953,3056.1,3056.0,0.005]
[1720495349909,8.61323873,3056.1,3056.0,0.005]
[1720495350264,6.89889953,3056.1,3056.0,0.005]
[1720495350420,8.61323873,3056.1,3056.0,0.005]
[1720495350743,1.62779953,3056.1,3056.0,0.005]
[1720495351116,1.18791287,3056.1,3056.0,0.005]
[1720495352344,1.18766032,3056.1,3056.0,0.005]
[1720495352901,0.05380364,3056.1,3056.0,0.005]
[1720495353305,0.157601,3056.5,3056.0,0.005]
[1720495353558,0.05319059,3056.1,3056.0,0.005]
[1720495353811,0.157601,3056.5,3056.0,0.005]
[1720495353967,0.05307865,3056.1,3056.0,0.005]
[1720495354179,0.157601,3056.5,3056.0,0.005]
[1720495354463,1.13369731,3056.4,3056.0,0.005]
[1720495354687,1.18694903,3056.3,3056.0,0.005]
[1720495354856,1.13369731,3056.2,3056.0,0.005]
[1720495355021,0.05295205,3056.1,3056.0,0.005]
[1720495355216,0.157601,3056.5,3056.0,0.005]
[1720495355462,0.05305499,3056.4,3056.0,0.005]
[1720495355918,0.05305499,3056.4,3056.0,0.06982382]
[1720495356119,0.157601,3056.5,3056.4,6.54364]
[1720495356423,1.849151,3056.8,3056.4,6.54364]
[1720495356424,0.48292294,3056.8,3056.7,9.0041]
[1720495356652,2.83867062,3058.3,3056.7,9.0041]
[1720495356653,1.71650529,3058.1,3057.2,3.27095]
[1720495356824,9.6413,3058.5,3057.2,3.27095]
[1720495356825,1.13308673,3058.0,3057.2,3.27095]
[1720495357040,1.71650529,3058.3,3057.2,3.27095]
[1720495357233,2.84956895,3058.2,3057.2,3.27095]
[1720495357596,4.34110635,3058.5,3057.3,3.27078]
[1720495357597,1.13306366,3058.1,3057.3,3.27078]
[1720495357798,0.12437117,3058.1,3056.7,12.9011]
[1720495358099,1.13306366,3058.0,3057.0,3.27118]
[1720495358244,1.13306366,3058.0,3057.1,3.0]
[1720495358445,0.04252832,3057.9,3057.1,3.0]
[1720495358647,1.95032639,3058.3,3057.1,6.27098]
[1720495358944,1.17607915,3058.2,3057.2,3.27087]
[1720495359148,0.04294764,3058.2,3057.2,3.27087]
[1720495359456,0.04294764,3058.2,3057.1,3.0]
[1720495359989,0.12471029,3058.2,3057.1,3.0]
[1720495361095,0.12471029,3058.2,3057.2,3.27096]
[1720495362197,0.12471029,3058.2,3057.1,3.0]
[1720495362348,0.04294764,3058.2,3057.1,3.27104]
[1720495362698,0.12471579,3058.2,3057.2,3.0]
[1720495364364,0.12471574,3058.2,3057.2,3.0]
[1720495364585,0.12471574,3058.2,3056.8,6.27138]
[1720495364893,0.04294764,3058.2,3056.9,3.27127]
[1720495365099,0.04294764,3058.2,3057.1,3.27099]
[1720495365309,0.12471571,3058.2,3057.2,3.0]
[1720495365947,0.12471571,3058.2,3057.0,3.0]
[1720495366148,0.12471571,3058.2,3056.8,3.0]
[1720495366954,2.3377,3058.1,3056.8,6.27137]
[1720495367299,0.37137053,3058.0,3056.8,3.0]
[1720495367604,0.37137053,3058.0,3057.0,3.27117]
[1720495367753,0.32801493,3058.0,3057.0,3.27117]
[1720495367954,0.04331598,3057.9,3057.1,3.0]
[1720495368404,0.35267642,3057.9,3057.1,3.0]
[1720495368552,2.3377,3058.1,3056.8,3.0]
[1720495368747,2.3377,3058.1,3057.3,3.27078]
[1720495369056,2.3377,3058.5,3057.4,3.27073]
[1720495369362,0.04346382,3058.4,3057.4,3.27073]
[1720495371487,0.04346382,3058.4,3057.2,3.27096]
[1720495371696,0.04346382,3058.4,3057.0,3.27116]
[1720495371879,0.26893406,3058.3,3057.1,3.0]
[1720495372054,0.04342502,3058.2,3057.2,3.27089]
[1720495373056,0.26893406,3058.3,3057.3,2.4415]
[1720495373278,0.04342502,3058.2,3057.4,3.27073]
[1720495375862,0.04342502,3058.2,3057.2,3.27089]
[1720495376393,0.04342502,3058.2,3057.3,3.27084]
[1720495377378,0.04342502,3058.2,3057.2,3.27089]
[1720495378058,0.04342502,3058.2,3057.3,3.27083]
[1720495378791,0.04342502,3058.2,3057.1,3.0]
[1720495378993,0.04342502,3058.2,3057.3,3.27083]
[1720495379195,0.04342502,3058.2,3057.4,3.27075]
[1720495379497,2.64587679,3058.5,3057.4,3.27075]
[1720495379802,0.04333872,3058.1,3057.4,3.27075]
[1720495380003,0.26458768,3058.4,3057.4,3.27075]
[1720495380158,0.04335335,3058.0,3057.4,3.27075]
[1720495380362,0.26458768,3058.4,3057.4,3.27075]
[1720495380560,0.0433888,3057.9,3057.4,3.27075]
[1720495380856,0.26458768,3058.4,3057.4,3.27075]
[1720495381089,0.33460206,3058.3,3057.3,3.27083]
[1720495381327,0.33460206,3058.3,3057.4,3.27075]
[1720495382372,0.33460206,3058.3,3057.2,3.27089]
[1720495382580,3.55991416,3058.2,3057.1,3.27107]
[1720495382918,3.55991416,3058.2,3057.2,3.0]
[1720495382919,1.56607176,3058.1,3057.2,3.0]
[1720495383217,0.43297677,3058.1,3057.2,3.0]
[1720495383415,0.08176786,3058.0,3057.2,3.0]
[1720495384504,1.13308865,3057.9,3057.2,3.0]
[1720495384702,0.08176786,3058.0,3056.8,5.92732029]
[1720495384904,1.13313588,3057.9,3057.0,3.27117]
[1720495385133,1.40659104,3058.0,3057.0,3.27117]
[1720495385282,1.13313588,3057.9,3057.0,3.27117]
[1720495385628,0.27345516,3058.0,3057.0,3.27117]
[1720495385629,1.13313588,3057.8,3057.0,3.27117]
[1720495385923,1.13313588,3057.7,3057.0,3.27117]
[1720495386122,1.13313588,3057.9,3057.0,3.27117]
[1720495386326,1.13313588,3057.8,3057.0,3.27117]
[1720495386477,1.13313588,3057.9,3057.0,3.27117]
[1720495386682,2.4899,3057.8,3057.0,3.27117]
[1720495386878,2.85220359,3057.8,3057.0,3.27117]
[1720495387113,1.17641614,3057.7,3057.0,3.27117]
[1720495387424,1.13323769,3057.6,3057.0,3.27117]
[1720495387626,1.13323769,3057.5,3057.0,3.27117]
[1720495387831,2.4899,3057.8,3057.0,3.27117]
[1720495388002,1.13315905,3057.7,3057.0,3.27117]
[1720495388204,1.13315905,3057.6,3057.0,3.27117]
[1720495388729,2.394,3058.2,3057.3,3.27085]
[1720495388885,1.13305306,3058.1,3057.3,3.27085]
[1720495389088,1.13305306,3058.0,3057.3,3.27085]
[1720495389284,0.0420273,3058.0,3057.3,3.27085]
[1720495389593,1.13305306,3057.9,3057.3,3.27085]
[1720495389905,1.13306678,3057.8,3057.3,3.27085]
[1720495390084,0.0420273,3058.0,3057.3,3.27085]
[1720495390289,1.13304923,3057.9,3057.3,3.27085]
[1720495390506,2.394,3058.2,3057.3,3.27085]
[1720495390726,0.04190197,3057.8,3057.3,3.27085]
[1720495390930,2.394,3058.2,3057.3,3.27085]
[1720495391233,0.04186025,3057.7,3057.3,3.27085]
[1720495391443,2.9334,3058.2,3057.3,3.27085]
[1720495391586,1.13305659,3058.1,3057.3,3.27085]
[1720495391787,1.13305659,3058.0,3057.3,3.27085]
[1720495391988,1.175042,3058.0,3057.3,3.27085]
[1720495392188,1.13305659,3057.9,3057.3,3.27085]
[1720495392635,0.04190197,3057.8,3057.3,3.27085]
[1720495392833,1.13305659,3057.7,3057.3,3.27085]
[1720495393032,0.04190197,3057.8,3057.3,3.27085]
[1720495393327,2.9334,3058.2,3057.5,3.27063]
[1720495393328,0.04199411,3057.7,3057.5,3.27063]
[1720495393687,0.30817679,3058.5,3057.5,3.27063]
[1720495393889,1.17543278,3058.4,3057.5,3.27063]
[1720495394089,1.1330123,3058.3,3057.5,3.27063]
[1720495394344,1.17532708,3058.2,3057.5,3.27063]
[1720495394645,1.1330123,3058.1,3057.5,3.27063]
[1720495394800,1.1330123,3058.0,3057.5,3.27063]
[1720495394987,0.04225353,3058.0,3057.7,6.54075]
[1720495395206,2.4321,3058.6,3057.7,6.60545308]
[1720495395416,1.13290113,3058.5,3057.7,6.54075]
[1720495395756,1.13290113,3058.4,3057.7,3.27033]
[1720495396111,0.0423345,3058.3,3057.7,3.27033]
[1720495396311,1.13290113,3058.2,3057.7,3.27033]
[1720495396731,1.17522839,3058.1,3057.7,3.27033]
[1720495396929,0.04225109,3058.1,3057.7,3.27033]
[1720495397119,2.93510921,3058.6,3057.7,3.27033]
[1720495397325,1.13295566,3058.5,3057.7,3.27033]
[1720495397523,1.13295566,3058.4,3057.7,3.27033]
[1720495397722,1.13295566,3058.3,3057.7,3.27033]
[1720495398051,1.13291704,3058.2,3057.7,3.27033]
[1720495398204,0.0423345,3058.3,3057.7,3.27033]
[1720495398711,0.0422928,3058.2,3057.7,3.27033]
[1720495399160,2.4321,3058.6,3057.7,3.27033]
[1720495399458,0.04225109,3058.1,3057.7,3.27033]
[1720495399611,7.00264721,3058.9,3057.7,3.27033]
[1720495399612,0.55979921,3058.7,3057.7,3.27033]
[1720495399808,7.00264721,3058.9,3057.9,3.27021]
[1720495399809,4.00264721,3058.9,3057.9,3.27021]
[1720495400007,0.04245959,3058.6,3058.1,3.26998]
[1720495400202,0.04245959,3058.6,3057.9,3.27021]
[1720495400203,0.04245959,3058.6,3057.9,3.27015]
[1720495400462,2.2915,3058.9,3057.9,3.27012]
[1720495400672,1.13282337,3058.8,3058.0,3.27004]
[1720495400965,2.2915,3058.9,3057.9,3.27012]
[1720495400966,1.13282337,3058.7,3057.9,3.27012]
[1720495401168,1.13282337,3058.8,3058.1,3.26998]
[1720495401452,1.13282337,3058.8,3058.1,3.2699]
[1720495401611,0.04275574,3058.7,3058.1,3.2699]
[1720495402831,2.2915,3058.9,3058.1,3.2699]
[1720495403228,1.1327704,3058.8,3058.1,3.2699]
[1720495403579,2.2915,3058.9,3058.1,3.2699]
[1720495403898,1.1327705,3058.8,3058.1,3.2699]
[1720495404069,2.2915,3058.9,3058.1,3.2699]
[1720495404232,1.13275816,3058.8,3058.1,3.2699]
[1720495404436,2.2915,3058.9,3058.1,3.2699]
[1720495405115,0.04279743,3058.8,3058.1,3.2699]
[1720495405550,4.17036747,3059.2,3058.1,3.2699]
[1720495405746,0.04273345,3058.7,3058.1,3.2699]
[1720495405945,4.34194422,3059.2,3058.1,3.2699]
[1720495406156,0.04274532,3058.6,3058.1,3.2699]
[1720495406357,2.62617675,3059.2,3057.9,6.54031]
[1720495406536,0.04266995,3058.5,3057.7,3.27042]
[1720495406843,1.71516642,3058.9,3057.8,3.27032]
[1720495407053,1.13286563,3058.8,3058.0,3.2701]
[1720495407284,1.13286563,3058.8,3057.9,0.06469443]
[1720495407285,4.71516642,3059.1,3058.1,3.26996]
[1720495407583,1.13280002,3059.0,3058.1,3.26996]
[1720495407718,1.13280002,3058.9,3058.1,3.26996]
[1720495407923,1.13280002,3058.8,3058.1,3.26996]
[1720495408157,4.71516642,3059.1,3058.1,3.26996]
[1720495408364,1.13276271,3059.0,3058.1,3.26996]
[1720495408559,1.13276271,3058.9,3058.1,3.26996]
[1720495408738,0.04290695,3059.0,3058.1,3.26996]
[1720495408940,0.04285535,3058.8,3058.1,3.26996]
[1720495409247,0.04285907,3058.9,3058.0,3.27002]
[1720495409425,0.04281366,3058.7,3058.0,3.27002]
[1720495409622,0.04281732,3058.8,3058.0,3.27002]
[1720495409846,0.04260506,3058.6,3058.0,3.27002]
[1720495410184,1.71467231,3059.0,3058.0,3.27002]
[1720495410393,0.04270337,3058.5,3058.1,3.26999]
[1720495410547,1.13280765,3058.9,3057.6,5.2626]
[1720495410548,1.88613954,3058.9,3057.8,3.27032]
[1720495410754,0.04273611,3058.4,3057.9,3.0]
[1720495411065,1.71467231,3060.1,3059.0,3.26904]
[1720495411438,2.83563934,3061.0,3059.7,2.2799]
[1720495411439,1.71467231,3061.0,3059.7,2.2799]
[1720495411588,0.37620984,3060.0,3059.9,3.26807]
[1720495411764,4.15897231,3061.2,3060.2,3.26774]
[1720495411765,2.4443,3061.2,3060.2,3.26774]
[1720495411967,1.13201573,3061.1,3060.2,3.26774]
[1720495412165,1.13201573,3061.0,3060.1,3.26786]
[1720495412492,0.0816848,3061.1,3060.1,3.26786]
[1720495412663,0.03373773,3060.9,3059.7,3.0]
[1720495412993,0.0336961,3060.8,3059.5,6.2685]
[1720495413155,0.08170245,3060.7,3059.5,6.2685]
[1720495413491,0.08170245,3060.7,3058.9,4.98805]
[1720495413492,3.57657309,3060.6,3058.9,3.26914]
[1720495413691,3.57657309,3060.6,3059.1,3.26883]
[1720495413692,1.57981217,3060.5,3059.1,3.26883]
[1720495413902,1.57981217,3060.5,3059.0,3.0]
[1720495413903,0.08171153,3060.5,3059.2,6.26881]
[1720495414101,0.0333681,3060.4,3060.3,3.26765]
[1720495414416,2.4728,3061.4,3060.2,3.26775]
[1720495414704,2.4728,3061.4,3060.3,3.0]
[1720495414705,0.08168107,3061.3,3060.3,3.0]
[1720495414854,0.11339483,3061.3,3060.3,3.0]
[1720495415053,0.03171376,3061.3,3060.4,3.2675]
[1720495415254,0.28216514,3061.3,3060.4,3.2675]
[1720495417170,0.03171376,3061.3,3060.8,1.719]
[1720495417377,2.55445793,3063.0,3061.2,1.719]
[1720495417608,2.4728,3063.0,3061.3,2.51655445]
[1720495417806,0.28900346,3062.9,3061.3,2.51655445]
[1720495417992,0.25544579,3062.9,3061.3,2.51655445]
[1720495418193,0.08164744,3062.8,3061.3,3.26658]
[1720495418386,2.445,3062.6,3061.3,3.26658]
[1720495418586,0.08165257,3062.5,3061.1,3.26678]
[1720495418804,0.08165257,3062.5,3061.2,3.0]
[1720495419807,0.08165257,3062.5,3061.2,6.26669]
[1720495420011,0.08165257,3062.5,3061.3,2.2616]
[1720495420212,2.3354,3063.0,3061.8,1.719]
[1720495420415,2.3354,3063.0,3061.6,6.26623]
[1720495420416,0.08164706,3062.9,3061.6,6.26623]
[1720495420615,0.31518706,3062.9,3061.6,6.26623]
[1720495420816,0.31518706,3062.9,3061.6,3.0]
[1720495420980,0.31518706,3062.9,3061.5,3.0]
[1720495421185,0.31518706,3062.9,3061.4,3.0]
[1720495421497,0.61025871,3062.8,3061.4,3.0]
[1720495421844,0.69191184,3062.8,3061.4,3.0]
[1720495422198,0.0816531,3062.7,3061.4,3.0]
[1720495422441,0.0816531,3062.6,3061.1,3.26679]
[1720495422754,0.69191179,3062.8,3061.2,3.0]
[1720495422945,0.38437987,3062.7,3061.2,3.0]
[1720495423745,2.3807,3062.5,3061.0,4.98589]
[1720495424047,0.32789503,3062.4,3061.0,4.98589]
[1720495424335,0.38437987,3062.7,3060.4,3.26745]
[1720495424336,0.38437987,3062.7,3061.4,1.719]
[1720495424510,0.38437987,3062.7,3061.6,3.26623]
[1720495424698,0.33437987,3062.7,3061.6,3.26623]
[1720495424900,0.27150799,3062.6,3061.6,3.26623]
[1720495426000,0.27150799,3062.6,3061.4,4.98547]
[1720495426345,0.27150799,3062.6,3061.5,3.0]
[1720495427065,0.08164812,3062.5,3061.5,3.0]
[1720495427234,0.27150799,3062.6,3061.5,3.0]
[1720495427720,0.08165131,3062.5,3061.0,4.98589]
[1720495428039,0.08165131,3062.5,3061.1,3.0]
[1720495428356,0.08165131,3062.5,3061.0,4.719]
[1720495430235,5.788,3062.4,3060.6,1.719]
[1720495430437,4.12063517,3062.3,3060.6,1.719]
[1720495430769,0.08167172,3062.2,3060.6,1.719]
[1720495431007,2.336,3062.1,3060.2,1.719]
[1720495431279,5.42,3061.8,3059.8,1.719]
[1720495431439,5.42,3061.8,3059.8,3.26818]
[1720495431440,3.452,3061.6,3059.8,3.26818]
[1720495431641,0.66865942,3061.5,3059.8,3.26818]
[1720495431866,3.66865942,3061.5,3059.8,3.26816]
[1720495432067,3.66865942,3061.5,3059.6,3.26839]
[1720495432247,3.66865942,3061.5,3059.5,2.4158]
[1720495432450,0.71206594,3061.4,3059.5,5.6843]
[1720495432652,0.71206594,3061.4,3058.8,15.74918]
[1720495432653,2.3752,3061.2,3059.1,3.2689]
[1720495432875,2.70259104,3061.1,3058.9,5.67373]
[1720495433043,2.3752,3061.0,3058.9,5.67373]
[1720495433382,0.08170554,3060.9,3059.0,3.26902]
[1720495433677,4.14916464,3060.9,3058.8,3.26925]
[1720495433843,3.0,3060.8,3058.8,3.26925]
[1720495434050,0.79662925,3060.7,3058.8,3.26925]
[1720495434250,0.79662925,3060.7,3058.4,3.26965]
[1720495434251,5.8883,3060.5,3058.4,3.26965]
[1720495434435,3.452,3060.3,3058.2,3.26987]
[1720495434637,3.0817245,3060.2,3058.3,3.26976]
[1720495434975,3.0817245,3060.2,3058.5,6.53905]
[1720495435134,3.0,3060.1,3058.6,3.26946]
[1720495435332,0.30817245,3060.1,3058.6,3.26946]
[1720495436370,0.30817245,3060.1,3058.3,6.26973]
[1720495436371,0.08172042,3060.0,3058.3,6.26973]
[1720495436610,0.08172042,3060.0,3058.3,3.0]
[1720495436889,0.08172042,3060.0,3058.4,3.2696]
[1720495437094,0.38989686,3060.1,3058.5,3.0]
[1720495437619,0.30817245,3060.1,3058.6,3.26946]
[1720495437823,0.30817245,3060.1,3058.6,3.33408922]
[1720495438310,0.30817245,3060.1,3058.6,3.26946]
[1720495439103,0.30817245,3060.1,3058.7,0.06462859]
[1720495439280,3.0,3060.3,3058.8,0.55]
[1720495439478,2.4363,3060.4,3059.1,3.26893]
[1720495439693,2.4363,3060.4,3059.2,0.06459587]
[1720495439891,2.4363,3060.4,3059.1,0.06459587]
[1720495440097,0.54363,3060.3,3059.1,3.33351583]
[1720495440436,3.54363,3060.3,3059.1,3.33351583]
[1720495441274,3.54363,3060.3,3059.1,0.06459583]
[1720495441504,3.54363,3060.3,3059.0,0.06459586]
[1720495441662,3.54363,3060.3,3058.6,3.0]
[1720495441663,2.462,3060.1,3058.6,3.0]
[1720495441863,0.08172487,3060.0,3058.6,3.0]
[1720495442093,3.08172487,3060.0,3058.6,3.0]
[1720495442297,3.08172487,3060.0,3058.0,10.71009]
[1720495442298,5.914,3059.9,3058.0,10.71009]
[1720495442577,0.98130681,3059.8,3058.0,3.27009]
[1720495442791,0.08173432,3059.7,3057.8,6.0373796]
[1720495442984,0.08173432,3059.7,3057.9,3.2702]
[1720495443205,0.08173432,3059.7,3057.6,3.33516303]
[1720495443206,0.39813068,3059.6,3057.6,3.33516303]
[1720495443385,2.4009,3060.3,3058.7,3.26935]
[1720495443583,2.4009,3060.3,3058.9,3.2691]
[1720495443765,2.4009,3060.3,3059.0,0.06460842]
[1720495445170,2.4009,3060.3,3058.5,3.0]
[1720495445171,0.08171151,3060.2,3058.5,3.0]
[1720495445533,2.367,3060.0,3058.1,10.70998]